fUST/lending_fUST_20250322
["ID","MTS","AMOUNT","RATE_DAILY","PERIOD"]
[356510199,1742590234332,-2000.0,0.0003275,15]
[356510200,1742590234342,-2000.0,0.0003275,15]
[356510201,1742590234351,-173.45859824,0.00032776,2]
[356510202,1742590234360,-21695.50888352,0.000328,120]
[356510203,1742590234381,-26800.89382466,0.000328,120]
[356510253,1742590747125,-249.32357278,0.00019601,120]
[356510254,1742590747151,-300.0,0.00019998,2]
[356510255,1742590747177,-321.88712339,0.00019999,2]
[356510256,1742590747204,-500.0,0.00019999,2]
[356510257,1742590747229,-503.63766195,0.00019999,2]
[356510258,1742590747255,-500.0,0.00019999,2]
[356510259,1742590747280,-500.0,0.00019999,2]
[356510260,1742590747305,-500.0,0.00019999,2]
[356510261,1742590747330,-500.0,0.00019999,2]
[356510262,1742590747355,-500.0,0.00019999,2]
[356510263,1742590747379,-500.0,0.00019999,2]
[356510264,1742590747404,-500.0,0.00019999,2]
[356510265,1742590747430,-500.0,0.00019999,2]
[356510266,1742590747454,-267.20990064,0.00019999,2]
[356510267,1742590747479,-500.0,0.00019999,2]
[356510268,1742590747503,-18357.94174124,0.0002,2]
[356510269,1742590748931,-25000.0,0.0002,2]
[356510270,1742590765004,-25000.0,0.0002,2]
[356510271,1742590765943,-25000.0,0.0002,2]
[356510272,1742590767133,-25000.0,0.0002,2]
[356510273,1742590768108,-25000.0,0.0002,2]
[356510274,1742590769358,-25000.0,0.0002,2]
[356511298,1742590796750,-150.0,0.00050215,90]
[356511301,1742590796775,-150.0,0.00050215,90]
[356511303,1742590796800,-167.0,0.00050215,90]
[356511305,1742590796823,-334.0,0.00050215,90]
[356511306,1742590796846,-667.0,0.00050215,90]
[356511308,1742590796870,-843.0,0.00050215,90]
[356511310,1742590796894,-1298.0,0.00050215,90]
[356511312,1742590796917,-1334.0,0.00050215,90]
[356511314,1742590796941,-2061.0,0.00050215,90]
[356511316,1742590796965,-150.0,0.00050215,120]
[356511318,1742590796989,-2506.87652023,0.00050215,120]
[356511320,1742590797016,-1441.93,0.00050215,120]
[356511322,1742590797040,-1441.93,0.00050215,120]
[356511325,1742590797065,-1441.93,0.00050215,120]
[356511327,1742590797097,-1441.93,0.00050215,120]
[356511329,1742590797122,-1441.93,0.00050215,120]
[356511331,1742590797148,-1441.93,0.00050215,120]
[356511333,1742590797175,-1441.93,0.00050215,120]
[356511335,1742590797199,-1441.93,0.00050215,120]
[356511337,1742590797224,-1441.93,0.00050215,120]
[356511339,1742590797249,-1441.93,0.00050215,120]
[356511341,1742590797274,-1441.93,0.00050215,120]
[356511343,1742590797300,-1441.93,0.00050215,120]
[356511345,1742590797326,-1441.93,0.00050215,120]
[356511347,1742590797351,-1441.93,0.00050215,120]
[356511349,1742590797377,-1441.93,0.00050215,120]
[356511351,1742590797402,-1441.93,0.00050215,120]
[356511353,1742590797428,-1441.93,0.00050215,120]
[356511356,1742590797454,-1441.93,0.00050215,120]
[356511358,1742590797480,-1441.93,0.00050215,120]
[356511360,1742590797506,-1441.93,0.00050215,120]
[356511362,1742590797532,-1441.93,0.00050215,120]
[356511364,1742590797557,-1441.93,0.00050215,120]
[356511366,1742590797584,-1441.93,0.00050215,120]
[356511368,1742590797610,-1442.14681001,0.00050215,120]
[356511370,1742590797635,-396.87030416,0.00050215,120]
[356511372,1742590797660,-607.84626545,0.00050215,30]
[356511374,1742590797684,-3203.18226927,0.00050215,120]
[356511376,1742590797708,-539.94281429,0.00050215,120]
[356511378,1742590797734,-515.46884377,0.00050215,120]
[356511380,1742590797759,-247.4885045,0.00050215,120]
[356511383,1742590797784,-498.999996,0.00050215,120]
[356511385,1742590797809,-903.51787393,0.00050215,120]
[356511387,1742590797833,-424.75755094,0.00050215,120]
[356511389,1742590797857,-968.13283862,0.00050215,120]
[356511391,1742590797882,-541.38911873,0.00050215,120]
[356511393,1742590797906,-2185.59002688,0.00050215,120]
[356511395,1742590797931,-679.01474638,0.00050215,120]
[356511397,1742590797956,-928.26137029,0.00050215,30]
[356511399,1742590797981,-3199.6368154,0.00050215,30]
[356511401,1742590798007,-240.82074905,0.00050215,120]
[356511403,1742590798032,-212.53758984,0.00050215,32]
[356511405,1742590798057,-993.70789873,0.00050215,30]
[356511408,1742590798093,-1374.86338531,0.00050215,120]
[356511410,1742590798125,-398.68734122,0.00050215,30]
[356511412,1742590798158,-934.59926371,0.00050215,120]
[356511413,1742590798185,-2000.0,0.00050215,120]
[356511414,1742590798212,-240.66488405,0.00050215,30]
[356511415,1742590798241,-1085.7517096,0.00050215,120]
[356511416,1742590798269,-334.27842224,0.00050215,120]
[356511417,1742590798296,-1563.94060681,0.00050215,30]
[356511419,1742590798323,-937.13416264,0.00050215,120]
[356511420,1742590798350,-361.37896893,0.00050215,120]
[356511422,1742590798379,-319.24612293,0.00050215,120]
[356511428,1742590798499,-993.89985224,0.00050215,120]
[356511430,1742590798525,-440.22654199,0.00050215,120]
[356511432,1742590798550,-1207.03609236,0.00050215,120]
[356511434,1742590798574,-821.84844005,0.00050215,120]
[356511435,1742590798599,-1599.69069209,0.00050215,120]
[356511437,1742590798624,-420.8006748,0.00050215,120]
[356511439,1742590798649,-212.99306677,0.00050215,120]
[356511441,1742590798674,-232.86073856,0.00050215,120]
[356511443,1742590798699,-312.69201402,0.00050215,120]
[356511445,1742590798728,-201.00445442,0.00050215,120]
[356511448,1742590798754,-1127.73237896,0.00050215,120]
[356511450,1742590798779,-2280.82817044,0.00050215,120]
[356511452,1742590798804,-425.44024423,0.00050215,120]
[356511454,1742590798829,-2119.49425928,0.00050215,120]
[356511456,1742590798853,-269.6,0.00050215,30]
[356511457,1742590798877,-2663.57065293,0.00050215,120]
[356511460,1742590798901,-100513.37848179,0.00050215,32]
[356511461,1742590798926,-5000.0,0.00050215,120]
[356511464,1742590798951,-1998.00229004,0.00050215,120]
[356511466,1742590798976,-1019.30389649,0.00050215,120]
[356511468,1742590799002,-1835.0,0.00050215,120]
[356511470,1742590799026,-20000.0,0.00050215,120]
[356511472,1742590799051,-30000.0,0.00050215,50]
[356511474,1742590799076,-40000.0,0.00050215,120]
[356511476,1742590799106,-500.0,0.00050215,120]
[356511478,1742590799133,-1000.0,0.00050215,120]
[356511480,1742590799157,-1132.0,0.00050215,120]
[356511482,1742590799184,-1150.22765237,0.00050215,120]
[356511484,1742590799209,-500.0,0.00050215,120]
[356511486,1742590799234,-1966.0,0.00050215,120]
[356511488,1742590799259,-1212.27034788,0.00050215,60]
[356511490,1742590799282,-235.36759171,0.00050215,30]
[356511492,1742590799307,-1098.99277717,0.00050215,60]
[356511507,1742590799645,-394.60923022,0.00050215,60]
[356511509,1742590799670,-1223.91767907,0.00050215,120]
[356511511,1742590799693,-2000.0,0.00050215,30]
[356511513,1742590799718,-2000.0,0.00050215,30]
[356511515,1742590799744,-173.55,0.00050215,30]
[356511517,1742590799769,-150.0,0.00050215,90]
[356511519,1742590799794,-973.0,0.00050215,90]
[356511521,1742590799818,-976.0,0.00050215,90]
[356511523,1742590799842,-973.0,0.00050215,90]
[356511525,1742590799866,-973.0,0.00050215,90]
[356511526,1742590799890,-150.0,0.00050215,90]
[356511528,1742590799916,-202.0,0.00050215,90]
[356511530,1742590799941,-404.0,0.00050215,90]
[356511533,1742590799966,-808.0,0.00050215,90]
[356511534,1742590799991,-1615.0,0.00050215,90]
[356511536,1742590800016,-2040.0,0.00050215,90]
[356511538,1742590800042,-3144.0,0.00050215,90]
[356511540,1742590800069,-3231.0,0.00050215,90]
[356511542,1742590800098,-4990.0,0.00050215,90]
[356511544,1742590800124,-1094.52016277,0.00050215,100]
[356511546,1742590800150,-323.1296246,0.00050215,120]
[356511548,1742590800181,-3178.97777981,0.00050215,60]
[356511550,1742590800206,-101739.0,0.00050215,120]
[356511553,1742590800236,-2351.82262912,0.00050215,120]
[356511555,1742590800262,-400229.0,0.00050215,120]
[356511557,1742590800287,-400.00701178,0.00050215,30]
[356511559,1742590800313,-2000.0,0.00050215,30]
[356511561,1742590800340,-888.3,0.00050215,30]
[356511563,1742590800366,-2000249.66796149,0.00050215,30]
[356511564,1742590800394,-2678.0,0.00050215,31]
[356511566,1742590800422,-1000.0,0.00050215,120]
[356511568,1742590800449,-150.0,0.00050215,90]
[356511570,1742590800475,-150.0,0.00050215,90]
[356511572,1742590800502,-150.0,0.00050215,90]
[356511574,1742590800530,-182.0,0.00050215,90]
[356511576,1742590800556,-229.0,0.00050215,90]
[356511578,1742590800581,-354.0,0.00050215,90]
[356511580,1742590800607,-364.0,0.00050215,90]
[356511582,1742590800632,-562.0,0.00050215,90]
[356511584,1742590800657,-150.0,0.00050215,90]
[356511586,1742590800683,-228.0,0.00050215,90]
[356511588,1742590800708,-287.0,0.00050215,90]
[356511590,1742590800733,-443.0,0.00050215,90]
[356511592,1742590800760,-455.0,0.00050215,90]
[356511594,1742590800784,-703.0,0.00050215,90]
[356511596,1742590800809,-150.0,0.00050215,90]
[356511598,1742590800833,-182.0,0.00050215,90]
[356511600,1742590800858,-364.0,0.00050215,90]
[356511602,1742590800883,-728.0,0.00050215,90]
[356511604,1742590800909,-919.0,0.00050215,90]
[356511606,1742590800935,-1417.0,0.00050215,90]
[356511608,1742590800959,-1456.0,0.00050215,90]
[356511610,1742590800984,-2249.0,0.00050215,90]
[356511612,1742590801011,-150.0,0.00050215,90]
[356511614,1742590801037,-226.0,0.00050215,90]
[356511615,1742590801063,-452.0,0.00050215,90]
[356511616,1742590801091,-571.0,0.00050215,90]
[356511617,1742590801116,-880.0,0.00050215,90]
[356511618,1742590801141,-904.0,0.00050215,90]
[356511619,1742590801169,-1397.0,0.00050215,90]
[356511620,1742590801194,-150.0,0.00050215,90]
[356511621,1742590801221,-175.0,0.00050215,90]
[356511623,1742590801246,-350.0,0.00050215,90]
[356511624,1742590801271,-701.0,0.00050215,90]
[356511628,1742590801340,-885.0,0.00050215,90]
[356511630,1742590801366,-1364.0,0.00050215,90]
[356511632,1742590801392,-1402.0,0.00050215,90]
[356511634,1742590801417,-2165.0,0.00050215,90]
[356511636,1742590801444,-500.0,0.00050215,120]
[356511638,1742590801471,-282.80126236,0.00050215,120]
[356511640,1742590801497,-5000.0,0.00050215,120]
[356511642,1742590801523,-1226.54205561,0.00050215,62]
[356511644,1742590801549,-500.0,0.00050215,30]
[356511646,1742590801574,-500.0,0.00050215,30]
[356511648,1742590801598,-888.299999,0.00050215,30]
[356511650,1742590801622,-2000.0,0.00050215,30]
[356511651,1742590801647,-201.68069622,0.00050215,120]
[356514475,1742590889686,5000.0,0.00050215,120]
[356514490,1742590890136,5000.0,0.00050215,120]
[356514498,1742590890390,5000.0,0.00050215,120]
[356514504,1742590890760,5000.0,0.00050215,120]
[356514515,1742590891082,5000.0,0.00050215,120]
[356514526,1742590891456,5000.0,0.00050215,120]
[356514939,1742590906784,2478.81536449,0.00050215,120]
[356514950,1742590907122,500.0,0.00050215,30]
[356515024,1742590909642,500.0,0.00050215,30]
[356515799,1742590939548,1474.55,0.0005021,120]
[356515808,1742590939860,1474.55,0.0005021,120]
[356515816,1742590940105,1474.55,0.0005021,120]
[356515824,1742590940352,1474.55,0.0005021,120]
[356515831,1742590940614,1474.55,0.0005021,120]
[356515842,1742590940957,1474.55,0.0005021,120]
[356515850,1742590941233,1474.55,0.0005021,120]
[356515858,1742590941469,1474.55,0.0005021,120]
[356515867,1742590941745,1474.55,0.0005021,120]
[356515876,1742590942207,1474.55,0.0005021,120]
[356515881,1742590942332,1474.55,0.0005021,120]
[356515889,1742590942589,1474.55,0.0005021,120]
[356515897,1742590942830,1474.55,0.0005021,120]
[356515905,1742590943094,1474.55,0.0005021,120]
[356515913,1742590943353,1474.55,0.0005021,120]
[356515922,1742590943633,1474.55,0.0005021,120]
[356515930,1742590943905,1474.55,0.0005021,120]
[356515938,1742590944162,1474.55,0.0005021,120]
[356515945,1742590944416,1474.55,0.0005021,120]
[356515955,1742590944721,1474.55,0.0005021,120]
[356515957,1742590944753,156.0,0.0005021,30]
[356515963,1742590944984,1474.55,0.0005021,120]
[356515972,1742590945252,1474.55,0.0005021,120]
[356515981,1742590945564,1474.55,0.0005021,120]
[356515990,1742590946008,1474.68807237,0.0005021,120]
[356516102,1742590950521,500.0,0.0005021,120]
[356516256,1742590979807,2000.0,0.0005021,30]
[356516257,1742590980370,2000.0,0.0005021,30]
[356516258,1742590980877,888.299999,0.0005021,30]
[356516259,1742590981207,3236.0,0.0005021,90]
[356516260,1742590981436,2000.0,0.0005021,30]
[356516261,1742590981512,530.0,0.0005021,90]
[356516262,1742590981866,279.0,0.0005021,90]
[356516263,1742590981895,2000.0,0.0005021,30]
[356516264,1742590982430,888.3,0.0005021,30]
[356516265,1742590983462,3083.0,0.0005021,90]
[356516266,1742590983788,6168.0,0.0005021,90]
[356516267,1742590984136,3083.0,0.0005021,90]
[356516268,1742590984553,3083.0,0.0005021,90]
[356516269,1742590984927,3083.0,0.0005021,90]
[356516270,1742590989072,19056.0,0.0005021,90]
[356516271,1742590989436,3120.0,0.0005021,90]
[356516272,1742590989887,882.0,0.0005021,90]
[356516273,1742590990255,334.0,0.0005021,90]
[356516274,1742590990635,257.0,0.0005021,90]
[356516275,1742590991033,171.0,0.0005021,90]
[356516276,1742591032597,150.0,0.0005021,120]
[356516277,1742591103131,1998.00229004,0.0005021,120]
[356516278,1742591103298,2506.87652023,0.0005021,120]
[356516279,1742591103329,173.55,0.0005021,30]
[356516280,1742591281935,1226.54205661,0.00050214,62]
[356516282,1742591376938,201.68069622,0.00050214,120]
[356516290,1742591432000,-24570.0048742,0.00018997,2]
[356516291,1742591432010,-4154.429378,0.00019812,2]
[356516292,1742591432019,-1651.61306377,0.00019899,2]
[356516293,1742591432029,-600.0,0.00019988,2]
[356516294,1742591432038,-300.0,0.00019994,2]
[356516295,1742591432048,-10847.83680212,0.00019995,2]
[356516296,1742591432057,-595.97017415,0.00019999,2]
[356516297,1742591432066,-72654.91035432,0.0002,2]
[356516298,1742591432076,-622.2,0.00020043,2]
[356516299,1742591432085,-645.2214,0.00020098,2]
[356516300,1742591432094,-669.0945918,0.00020153,2]
[356516301,1742591432103,-693.8510917,0.00020208,2]
[356516302,1742591432112,-719.52358209,0.00020263,2]
[356516303,1742591432121,-746.14595463,0.00020318,2]
[356516304,1742591432130,-773.75335495,0.00020373,2]
[356516305,1742591432140,-802.38222908,0.00020428,2]
[356516306,1742591432150,-832.07037156,0.00020483,2]
[356516307,1742591432159,-862.8569753,0.00020538,2]
[356516308,1742591432168,-894.78268339,0.00020593,2]
[356516309,1742591432178,-927.88964268,0.00020648,2]
[356516310,1742591432187,-962.22155946,0.00020703,2]
[356516311,1742591432196,-371.35877734,0.00021672,2]
[356516312,1742591432206,-420.0,0.00021771,2]
[356516313,1742591432215,-1651.61306377,0.00022052,2]
[356516314,1742591432226,-1237.3795429,0.00022182,2]
[356516315,1742591432235,-221.3638528,0.000224,3]
[356516316,1742591432244,-371.35877731,0.00022464,2]
[356516317,1742591432254,-221.36385275,0.000231,3]
[356516318,1742591432263,-495.37634926,0.00023175,2]
[356516319,1742591432273,-371.35877731,0.00023256,2]
[356516320,1742591432286,-344.40337585,0.0002352,2]
[356516321,1742591432295,-500.0,0.0002352,2]
[356516322,1742591432304,-500.0,0.0002352,2]
[356516323,1742591432315,-500.0,0.0002352,2]
[356516324,1742591432324,-500.0,0.0002352,2]
[356516325,1742591432334,-500.0,0.0002352,2]
[356516326,1742591432343,-500.0,0.0002352,2]
[356516327,1742591432353,-500.0,0.0002352,2]
[356516328,1742591432362,-500.0,0.0002352,2]
[356516329,1742591432371,-500.0,0.0002352,2]
[356516330,1742591432381,-500.0,0.0002352,2]
[356516331,1742591432389,-500.0,0.0002352,2]
[356516332,1742591432399,-500.0,0.0002352,2]
[356516333,1742591432408,-163.26213697,0.0002352,2]
[356516334,1742591432417,-500.0,0.0002352,2]
[356516335,1742591432427,-481.04599124,0.0002352,2]
[356516336,1742591432436,-500.0,0.0002352,2]
[356516337,1742591432446,-257.30154777,0.0002352,2]
[356516338,1742591432455,-500.0,0.0002352,2]
[356516339,1742591432465,-500.0,0.0002352,2]
[356516340,1742591432475,-500.0,0.0002352,2]
[356516341,1742591432484,-500.0,0.0002352,2]
[356516342,1742591432494,-500.0,0.0002352,2]
[356516343,1742591432503,-398.36704588,0.0002352,2]
[356516344,1742591432513,-587.0,0.00023707,2]
[356516345,1742591432522,-371.35877731,0.00024048,2]
[356516346,1742591432532,-1651.61306377,0.00024204,2]
[356516347,1742591432541,-500.0,0.00024329,2]
[356516348,1742591432550,-500.0,0.00024329,2]
[356516349,1742591432560,-500.0,0.00024329,2]
[356516350,1742591432570,-500.0,0.00024329,2]
[356516351,1742591432580,-418.05504121,0.00024329,2]
[356516352,1742591432590,-500.0,0.00024329,2]
[356516353,1742591432600,-500.0,0.000244,2]
[356516354,1742591432609,-5369.26855586,0.000248,2]
[356516355,1742591432619,-371.35877731,0.0002484,2]
[356516356,1742591432629,-5369.26855586,0.0002488,2]
[356516357,1742591432638,-151.0,0.00024885,2]
[356516358,1742591432648,-1000.0,0.00024885,2]
[356516359,1742591432657,-10000.0,0.00024885,2]
[356516360,1742591432666,-285040.217711,0.000249,2]
[356516361,1742591432676,-156.587,0.00025433,2]
[356516362,1742591432685,-10000.0,0.00025433,2]
[356516363,1742591432695,-823.0,0.00025814,2]
[356516364,1742591432704,-330.7695246,0.00025981,2]
[356516365,1742591432714,-10000.0,0.00025981,2]
[356516366,1742591432723,-160.0,0.00026138,2]
[356516367,1742591432733,-160.0,0.00026143,2]
[356516368,1742591432742,-834.1406796,0.00026143,2]
[356516369,1742591432752,-418.02116171,0.00026143,2]
[356516370,1742591432762,-160.0,0.00026145,2]
[356516371,1742591432771,-1000.0,0.00026254,2]
[356516372,1742591432781,-221.36385275,0.000263,4]
[356516373,1742591432791,-1651.61306377,0.00026357,2]
[356516374,1742591432801,-71260.0544279,0.00026519,2]
[356516375,1742591432810,-2684.63427793,0.00026519,2]
[356516376,1742591432821,-10000.0,0.00026529,2]
[356516377,1742591432830,-500.0,0.00027397,5]
[356516378,1742591432841,-2684.63427793,0.00027751,2]
[356516379,1742591432851,-13423.1713896,0.0002776,2]
[356516380,1742591432861,-222000.0,0.0002777,2]
[356516381,1742591432871,-500.0,0.0002777,2]
[356516382,1742591432881,-3000.0,0.0002777,2]
[356516383,1742591432890,-484.0,0.00028109,2]
[356516384,1742591432900,-1651.61306377,0.0002851,2]
[356516385,1742591432910,-1000.0,0.00028767,5]
[356516386,1742591432920,-2684.63427793,0.00028989,2]
[356516387,1742591432930,-1000.0,0.00028999,5]
[356516388,1742591432940,-895.88371337,0.00028999,5]
[356516389,1742591432950,-1000.0,0.00028999,5]
[356516390,1742591432960,-1000.0,0.00028999,5]
[356516391,1742591432969,-1000.0,0.00028999,5]
[356516392,1742591432979,-1000.0,0.00028999,5]
[356516393,1742591432988,-1000.0,0.00028999,3]
[356516394,1742591432998,-1000.0,0.00028999,5]
[356516395,1742591433007,-1000.0,0.00028999,5]
[356516396,1742591433017,-500.0,0.00028999,5]
[356516397,1742591433026,-1000.0,0.00028999,5]
[356516398,1742591433037,-383.06858051,0.00028999,5]
[356516399,1742591433047,-1000.0,0.00028999,5]
[356516400,1742591433056,-1000.0,0.00028999,5]
[356516401,1742591433066,-1000.0,0.00028999,5]
[356516402,1742591433075,-835.82363739,0.00028999,5]
[356516403,1742591433085,-1000.0,0.00028999,5]
[356516404,1742591433095,-540.0,0.00029036,2]
[356516405,1742591433106,-1914.0,0.00029036,2]
[356516406,1742591433115,-1012.199,0.00029036,2]
[356516407,1742591433125,-400.0,0.00029036,2]
[356516408,1742591433135,-300.0,0.000294,14]
[356516409,1742591433144,-2500.0,0.00029426,3]
[356516410,1742591433154,-221.36385275,0.000295,5]
[356516411,1742591433163,-500.0,0.00029808,5]
[356516412,1742591433173,-1000.0,0.00029808,5]
[356516413,1742591433183,-500.0,0.00029808,5]
[356516414,1742591433192,-500.0,0.00029808,2]
[356516415,1742591433202,-1000.0,0.00029879,5]
[356516416,1742591433212,-640.58,0.000299,2]
[356516417,1742591433222,-223.0,0.0003,2]
[356516418,1742591433232,-1500.0,0.00030137,5]
[356516419,1742591433242,-1651.61306377,0.00030663,2]
[356516420,1742591433252,-300.0,0.000309,15]
[356516421,1742591433263,-2684.63427793,0.00030903,2]
[356516422,1742591433272,-600.0,0.00031465,2]
[356516423,1742591433286,-2000.0,0.00031507,5]
[356516424,1742591433296,-166.4959698,0.00031792,4]
[356516425,1742591433305,-600.0,0.00031793,2]
[356516426,1742591433366,-300.0,0.00031884,2]
[356516427,1742591433377,-2000.0,0.00031884,2]
[356516428,1742591433386,-398.0,0.00032036,2]
[356516429,1742591433396,-600.0,0.0003212,2]
[356516430,1742591433408,-2651.04741016,0.00032329,5]
[356516431,1742591433418,-415.844581,0.000324,16]
[356516432,1742591433427,-600.0,0.00032448,2]
[356516433,1742591433437,-19717.45259333,0.00032547,2]
[356516434,1742591433446,-494.26,0.000327,31]
[356516435,1742591433456,-494.26,0.000327,31]
[356516436,1742591433465,-494.26,0.000327,31]
[356516437,1742591433475,-494.26,0.000327,31]
[356516438,1742591433485,-494.26,0.000327,31]
[356516439,1742591433494,-494.26,0.000327,31]
[356516440,1742591433504,-494.26,0.000327,31]
[356516441,1742591433514,-494.26,0.000327,31]
[356516442,1742591433524,-494.26,0.000327,31]
[356516443,1742591433533,-494.26,0.000327,31]
[356516444,1742591433542,-494.26,0.000327,31]
[356516445,1742591433553,-494.26,0.000327,31]
[356516446,1742591433563,-221.36385275,0.000327,6]
[356516447,1742591433572,-600.0,0.00032776,2]
[356516448,1742591433582,-2748.24198438,0.000328,120]
[356516449,1742591433592,-1000.0,0.000328,60]
[356516450,1742591433601,-2000.0,0.000328,9]
[356516451,1742591433611,-2000.0,0.000328,9]
[356516452,1742591433620,-1651.61306377,0.00032815,2]
[356516453,1742591433630,-2684.63427793,0.00032863,2]
[356516454,1742591433639,-16107.8056676,0.00032866,2]
[356516455,1742591433649,-500.0,0.00032873,5]
[356516456,1742591433659,-500.0,0.00032873,5]
[356516457,1742591433669,-452.03626924,0.00032873,5]
[356516458,1742591433678,-500.0,0.00032873,5]
[356516459,1742591433688,-500.0,0.00032873,5]
[356516460,1742591433697,-267.13302652,0.00032873,5]
[356516461,1742591433706,-500.0,0.00032873,5]
[356516462,1742591433716,-500.0,0.00032873,5]
[356516463,1742591433725,-258.06734106,0.00032873,5]
[356516464,1742591433735,-500.0,0.00032873,2]
[356516465,1742591433744,-500.0,0.00032873,5]
[356516466,1742591433754,-500.0,0.00032873,5]
[356516467,1742591433763,-500.0,0.00032873,5]
[356516468,1742591433773,-500.0,0.00032873,5]
[356516469,1742591433782,-500.0,0.00032873,5]
[356516470,1742591433791,-508.20305725,0.00032873,5]
[356516471,1742591433800,-270.22271141,0.00032873,5]
[356516472,1742591433810,-500.0,0.00032873,5]
[356516473,1742591433819,-612.58086583,0.00032873,5]
[356516474,1742591433829,-500.0,0.00032873,5]
[356516475,1742591433838,-500.0,0.00032873,5]
[356516476,1742591433847,-398.96349525,0.00032873,5]
[356516477,1742591433857,-500.0,0.00032873,5]
[356516478,1742591433866,-500.0,0.00032873,5]
[356516479,1742591433875,-500.0,0.00032873,5]
[356516480,1742591433885,-500.0,0.00032873,5]
[356516481,1742591433895,-500.0,0.00032873,5]
[356516482,1742591433904,-164.40001247,0.00032873,5]
[356516483,1742591433913,-500.0,0.00032873,5]
[356516484,1742591433922,-500.0,0.00032873,5]
[356516485,1742591433932,-500.0,0.00032873,5]
[356516486,1742591433941,-301.00989732,0.00032873,5]
[356516487,1742591433951,-517.8544009,0.00032873,5]
[356516488,1742591433961,-500.0,0.00032873,5]
[356516489,1742591433971,-161.02485404,0.00032873,5]
[356516490,1742591433980,-500.0,0.00032873,5]
[356516491,1742591433990,-433.67879271,0.00032873,5]
[356516492,1742591434000,-500.0,0.00032873,5]
[356516493,1742591434010,-500.0,0.00032873,5]
[356516494,1742591434019,-500.0,0.00032873,5]
[356516495,1742591434028,-500.0,0.00032873,5]
[356516496,1742591434037,-500.0,0.00032873,5]
[356516497,1742591434047,-613.07030683,0.00032873,5]
[356516498,1742591434057,-279.75278749,0.00032873,5]
[356516499,1742591434066,-500.0,0.00032873,5]
[356516500,1742591434075,-518.54248024,0.00032873,5]
[356516501,1742591434085,-501.11935127,0.00032873,5]
[356516502,1742591434094,-500.0,0.00032873,5]
[356516503,1742591434104,-500.0,0.00032873,5]
[356516504,1742591434114,-500.0,0.00032873,5]
[356516505,1742591434123,-500.0,0.00032873,5]
[356516506,1742591434133,-500.0,0.00032873,5]
[356516507,1742591434142,-221.08319801,0.00032873,5]
[356516508,1742591434151,-500.0,0.00032876,120]
[356516509,1742591434160,-1449.93,0.00032876,21]
[356516510,1742591434169,-2636.2,0.00032876,21]
[356516511,1742591434179,-160.0,0.00032876,3]
[356516512,1742591434188,-160.0,0.00032876,5]
[356516513,1742591434198,-500.0,0.00032876,21]
[356516514,1742591434207,-500.0,0.00032876,21]
[356516515,1742591434218,-500.0,0.00032876,2]
[356516516,1742591434227,-500.0,0.00032876,2]
[356516517,1742591434237,-500.0,0.00032876,2]
[356516518,1742591434246,-500.0,0.00032876,2]
[356516519,1742591434255,-500.0,0.00032876,2]
[356516520,1742591434264,-500.0,0.00032876,2]
[356516521,1742591434276,-500.0,0.00032876,2]
[356516522,1742591434286,-546.73314585,0.00032876,2]
[356516523,1742591434296,-500.0,0.00032876,21]
[356516524,1742591434306,-500.0,0.00032876,21]
[356516525,1742591434317,-500.0,0.00032876,21]
[356516526,1742591434326,-613.37,0.00032876,21]
[356516527,1742591434336,-500.0,0.00032876,21]